[Event "*** Titled Tuesday Blitz"]
[Site "Chess.com"]
[Date "2020.05.12"]
[Round "8"]
[White "Milchone1"]
[Black "chesslh19"]
[Result "1-0"]
[WhiteElo "2471"]
[BlackElo "2186"]
[TimeControl "180+1"]
[EndTime "11:32:31 PDT"]
[Termination "Milchone1 won by resignation"]

1. Nf3 {[%clk 0:02:51]} 1... Nf6 {[%clk 0:02:58.9]} 2. c4 {[%clk 0:02:50.9]}
2... e6 {[%clk 0:02:58.8]} 3. g3 {[%clk 0:02:50.4]} 3... d5 {[%clk 0:02:58.8]}
4. Bg2 {[%clk 0:02:51.3]} 4... dxc4 {[%clk 0:02:58.7]} 5. O-O {[%clk 0:02:52.2]}
5... Be7 {[%clk 0:02:59]} 6. Qa4+ {[%clk 0:02:51.5]} 6... Nbd7 {[%clk
0:02:46.3]} 7. Qxc4 {[%clk 0:02:50.3]} 7... O-O {[%clk 0:02:44.9]} 8. a4 {[%clk
0:02:48.7]} 8... c5 {[%clk 0:02:27.4]} 9. d3 {[%clk 0:02:47.6]} 9... Nb6 {[%clk
0:02:05.1]} 10. Qc2 {[%clk 0:02:46.4]} 10... Nbd5 {[%clk 0:02:03.8]} 11. a5
{[%clk 0:02:45]} 11... Rb8 {[%clk 0:02:00]} 12. Nc3 {[%clk 0:02:42.7]} 12... b5
{[%clk 0:01:54.1]} 13. axb6 {[%clk 0:02:42.2]} 13... axb6 {[%clk 0:01:54.2]} 14.
Bd2 {[%clk 0:02:32.5]} 14... Bb7 {[%clk 0:01:50.8]} 15. Nxd5 {[%clk 0:02:29.5]}
15... Bxd5 {[%clk 0:01:49.5]} 16. e4 {[%clk 0:02:28.8]} 16... Bb7 {[%clk
0:01:48]} 17. Bc3 {[%clk 0:02:28.9]} 17... Ra8 {[%clk 0:01:37.4]} 18. b3 {[%clk
0:02:28.7]} 18... Qc7 {[%clk 0:01:32.5]} 19. Nd2 {[%clk 0:02:26.9]} 19... Rfd8
{[%clk 0:01:02.7]} 20. Nc4 {[%clk 0:02:25.2]} 20... Nd7 {[%clk 0:00:55.2]} 21.
f4 {[%clk 0:02:17.6]} 21... Bc6 {[%clk 0:00:44.6]} 22. e5 {[%clk 0:02:11.8]}
22... Qb7 {[%clk 0:00:42.2]} 23. Bxc6 {[%clk 0:01:58.4]} 23... Qxc6 {[%clk
0:00:42.3]} 24. Qg2 {[%clk 0:01:59.3]} 24... Qxg2+ {[%clk 0:00:40]} 25. Kxg2
{[%clk 0:01:58.7]} 25... Nf8 {[%clk 0:00:37.2]} 26. Nxb6 {[%clk 0:01:54.4]}
26... Rxa1 {[%clk 0:00:36]} 27. Rxa1 {[%clk 0:01:53.3]} 27... Rxd3 {[%clk
0:00:36.6]} 28. Rc1 {[%clk 0:01:49.5]} 28... g5 {[%clk 0:00:24.7]} 29. Rc2
{[%clk 0:01:40.1]} 29... Ng6 {[%clk 0:00:23.7]} 30. fxg5 {[%clk 0:01:38.2]}
30... Bxg5 {[%clk 0:00:23.3]} 31. Nc4 {[%clk 0:01:37.2]} 31... h5 {[%clk
0:00:19]} 32. Kf2 {[%clk 0:01:37]} 32... h4 {[%clk 0:00:18.8]} 33. Ke2 {[%clk
0:01:37.3]} 33... Rd8 {[%clk 0:00:18.6]} 34. Ra2 {[%clk 0:01:30.8]} 34... hxg3
{[%clk 0:00:18.6]} 35. hxg3 {[%clk 0:01:31.7]} 35... Ne7 {[%clk 0:00:18.3]} 36.
Ra5 {[%clk 0:01:26.5]} 36... Rb8 {[%clk 0:00:14.9]} 37. Rxc5 {[%clk 0:01:23]}
37... Rxb3 {[%clk 0:00:14.9]} 38. Nd6 {[%clk 0:01:23.4]} 38... Nf5 {[%clk
0:00:11.8]} 39. Nxf5 {[%clk 0:01:22.9]} 39... exf5 {[%clk 0:00:11.8]} 40. Kd3
{[%clk 0:01:15.8]} 40... f4 {[%clk 0:00:11.7]} 41. gxf4 {[%clk 0:01:15.5]} 41...
Bxf4 {[%clk 0:00:11.6]} 42. Ke4 {[%clk 0:01:15.5]} 42... Bg5 {[%clk 0:00:11.2]}
43. Kf5 {[%clk 0:01:15.4]} 43... Be3 {[%clk 0:00:10.1]} 44. Rc8+ {[%clk
0:01:14.6]} 44... Kh7 {[%clk 0:00:10.3]} 45. Kf6 {[%clk 0:01:14]} 45... Rb7
{[%clk 0:00:07.9]} 46. Rf8 {[%clk 0:01:10.8]} 46... Bh6 {[%clk 0:00:07.7]} 47.
Rxf7+ {[%clk 0:01:10.5]} 47... Rxf7+ {[%clk 0:00:08.3]} 48. Kxf7 {[%clk
0:01:11.4]} 48... Bg5 {[%clk 0:00:08.6]} 49. e6 {[%clk 0:01:11]} 49... Kh6
{[%clk 0:00:06.7]} 50. Bf6 {[%clk 0:01:11.2]} 50... Bf4 {[%clk 0:00:06.9]} 51.
e7 {[%clk 0:01:10.9]} 1-0

[Event "*** Titled Tuesday Blitz"]
[Site "Chess.com"]
[Date "2020.05.12"]
[Round "8"]
[White "Gabrielian_Artur"]
[Black "Zakaryan_David"]
[Result "1/2-1/2"]
[WhiteElo "2705"]
[BlackElo "2532"]
[TimeControl "180+1"]
[EndTime "11:32:32 PDT"]
[Termination "Game drawn by agreement"]

1. e4 {[%clk 0:02:59.8]} 1... c6 {[%clk 0:02:55.8]} 2. d4 {[%clk 0:02:58.4]}
2... d5 {[%clk 0:02:54.8]} 3. exd5 {[%clk 0:02:56.9]} 3... cxd5 {[%clk
0:02:54.1]} 4. Bd3 {[%clk 0:02:51.9]} 4... Nc6 {[%clk 0:02:52.1]} 5. c3 {[%clk
0:02:50]} 5... Qc7 {[%clk 0:02:50.8]} 6. Ne2 {[%clk 0:02:41.6]} 6... Nf6 {[%clk
0:02:46.6]} 7. Bf4 {[%clk 0:02:37.4]} 7... Qd8 {[%clk 0:02:16.4]} 8. O-O {[%clk
0:02:36.7]} 8... g6 {[%clk 0:02:14.5]} 9. Nd2 {[%clk 0:02:29.7]} 9... Bg7 {[%clk
0:02:13.2]} 10. Nf3 {[%clk 0:02:29.6]} 10... O-O {[%clk 0:02:11.3]} 11. Re1
{[%clk 0:02:28.9]} 11... Nh5 {[%clk 0:02:05.9]} 12. Bd2 {[%clk 0:02:20.5]} 12...
Bg4 {[%clk 0:01:56.8]} 13. Ng3 {[%clk 0:02:17.8]} 13... Nxg3 {[%clk 0:01:55.6]}
14. hxg3 {[%clk 0:02:17.1]} 14... e5 {[%clk 0:01:38.9]} 15. dxe5 {[%clk
0:02:14.7]} 15... Nxe5 {[%clk 0:01:32.7]} 16. Be2 {[%clk 0:02:14.8]} 16... Nxf3+
{[%clk 0:01:31.2]} 17. Bxf3 {[%clk 0:02:15]} 17... Bxf3 {[%clk 0:01:29.5]} 18.
Qxf3 {[%clk 0:02:15.2]} 18... Qb6 {[%clk 0:01:26]} 19. Rab1 {[%clk 0:02:05.2]}
19... d4 {[%clk 0:01:24.9]} 20. c4 {[%clk 0:01:52.4]} 20... Qa6 {[%clk
0:01:23.6]} 21. Qd3 {[%clk 0:01:16.6]} 21... Rfe8 {[%clk 0:01:18.2]} 22. a3
{[%clk 0:01:10.9]} 22... h5 {[%clk 0:01:13.6]} 23. Rxe8+ {[%clk 0:01:08.5]}
23... Rxe8 {[%clk 0:01:11.7]} 24. Re1 {[%clk 0:01:08.7]} 24... Rxe1+ {[%clk
0:01:10.2]} 25. Bxe1 {[%clk 0:01:09.6]} 25... f5 {[%clk 0:01:05.3]} 26. f3
{[%clk 0:01:03.6]} 26... Qe6 {[%clk 0:00:59.7]} 27. Bf2 {[%clk 0:01:03.6]} 27...
Qe5 {[%clk 0:00:52.9]} 28. Kf1 {[%clk 0:01:02.4]} 28... a6 {[%clk 0:00:51.5]}
29. b4 {[%clk 0:01:02]} 29... Kh7 {[%clk 0:00:49.6]} 30. Qe2 {[%clk 0:00:59.5]}
30... Qd6 {[%clk 0:00:48.7]} 31. Qd3 {[%clk 0:00:59.7]} 31... Qe5 {[%clk
0:00:47.7]} 32. a4 {[%clk 0:00:59.7]} 32... Qd6 {[%clk 0:00:46]} 33. b5 {[%clk
0:00:50.8]} 33... Qc5 {[%clk 0:00:43]} 34. Be1 {[%clk 0:00:46.5]} 34... Qe5
{[%clk 0:00:38.6]} 35. bxa6 {[%clk 0:00:38.7]} 35... bxa6 {[%clk 0:00:39.5]} 36.
Bf2 {[%clk 0:00:37]} 36... Qc5 {[%clk 0:00:38.1]} 37. Be1 {[%clk 0:00:37.2]}
37... Qe5 {[%clk 0:00:36.7]} 38. Bf2 {[%clk 0:00:37.4]} 38... Qc5 {[%clk
0:00:35.4]} 1/2-1/2

[Event "*** Titled Tuesday Blitz"]
[Site "Chess.com"]
[Date "2020.05.12"]
[Round "8"]
[White "Skatchkov_V"]
[Black "MFBerna"]
[Result "1-0"]
[WhiteElo "2557"]
[BlackElo "2390"]
[TimeControl "180+1"]
[EndTime "11:32:33 PDT"]
[Termination "Skatchkov_V won by checkmate"]

1. d4 {[%clk 0:03:00.8]} 1... d5 {[%clk 0:02:59.3]} 2. c4 {[%clk 0:03:00.7]}
2... dxc4 {[%clk 0:02:53.6]} 3. e4 {[%clk 0:02:59.5]} 3... e5 {[%clk 0:02:52.6]}
4. Nf3 {[%clk 0:02:50.3]} 4... exd4 {[%clk 0:02:51.9]} 5. Bxc4 {[%clk
0:02:27.9]} 5... Nc6 {[%clk 0:02:51.4]} 6. O-O {[%clk 0:02:07.9]} 6... Be7
{[%clk 0:02:28.6]} 7. Qb3 {[%clk 0:01:55.6]} 7... Na5 {[%clk 0:02:12.2]} 8.
Bxf7+ {[%clk 0:01:28.1]} 8... Kf8 {[%clk 0:02:12.5]} 9. Qa4 {[%clk 0:01:19.4]}
9... Kxf7 {[%clk 0:01:54.2]} 10. Qxa5 {[%clk 0:01:18.5]} 10... c5 {[%clk
0:01:51.2]} 11. Qb5 {[%clk 0:01:10.6]} 11... Qb6 {[%clk 0:01:25.4]} 12. Qd3
{[%clk 0:00:51]} 12... Nf6 {[%clk 0:01:04.8]} 13. Nbd2 {[%clk 0:00:43.8]} 13...
Re8 {[%clk 0:00:53.6]} 14. e5 {[%clk 0:00:41.5]} 14... Nd5 {[%clk 0:00:43.2]}
15. Qxh7 {[%clk 0:00:41.3]} 15... Qg6 {[%clk 0:00:21]} 16. e6+ {[%clk
0:00:38.5]} 16... Qxe6 {[%clk 0:00:21.3]} 17. Re1 {[%clk 0:00:35.1]} 17... Qf5
{[%clk 0:00:10.1]} 18. Ne5+ {[%clk 0:00:34.2]} 18... Kf6 {[%clk 0:00:10.1]} 19.
Ne4+ {[%clk 0:00:32]} 19... Kxe5 {[%clk 0:00:08.9]} 20. Ng3+ {[%clk 0:00:32.3]}
20... Kf6 {[%clk 0:00:04.2]} 21. Nxf5 {[%clk 0:00:31.4]} 21... Bxf5 {[%clk
0:00:05.1]} 22. Bg5+ {[%clk 0:00:18.6]} 22... Kxg5 {[%clk 0:00:03.9]} 23. Qxg7+
{[%clk 0:00:19.2]} 23... Bg6 {[%clk 0:00:03.2]} 24. h4+ {[%clk 0:00:19.6]} 24...
Kh5 {[%clk 0:00:02.2]} 25. Re5+ {[%clk 0:00:19.6]} 25... Kxh4 {[%clk 0:00:02.2]}
26. Qxg6 {[%clk 0:00:19.8]} 26... Rg8 {[%clk 0:00:02.4]} 27. Rh5# {[%clk
0:00:20.1]} 1-0

[Event "*** Titled Tuesday Blitz"]
[Site "Chess.com"]
[Date "2020.05.12"]
[Round "8"]
[White "Parkas"]
[Black "ChessQueen"]
[Result "1-0"]
[WhiteElo "2423"]
[BlackElo "2599"]
[TimeControl "180+1"]
[EndTime "11:32:33 PDT"]
[Termination "Parkas won by resignation"]

1. e4 {[%clk 0:02:57]} 1... c6 {[%clk 0:02:59.7]} 2. d4 {[%clk 0:02:56.8]} 2...
d5 {[%clk 0:02:59.9]} 3. f3 {[%clk 0:02:57.4]} 3... dxe4 {[%clk 0:02:53.3]} 4.
fxe4 {[%clk 0:02:57.1]} 4... e5 {[%clk 0:02:53.5]} 5. Nf3 {[%clk 0:02:56.7]}
5... exd4 {[%clk 0:02:52]} 6. Bc4 {[%clk 0:02:56.8]} 6... Bb4+ {[%clk
0:01:58.9]} 7. c3 {[%clk 0:02:04.8]} 7... dxc3 {[%clk 0:01:58.2]} 8. Bxf7+
{[%clk 0:02:04.4]} 8... Ke7 {[%clk 0:01:58.3]} 9. Qb3 {[%clk 0:01:50.5]} 9...
Qb6 {[%clk 0:01:08]} 10. bxc3 {[%clk 0:01:44.8]} 10... Ba5 {[%clk 0:00:25.8]}
11. Bxg8 {[%clk 0:01:40.8]} 11... Qxb3 {[%clk 0:00:25.8]} 12. Bxb3 {[%clk
0:01:40.7]} 12... h6 {[%clk 0:00:25.4]} 13. Ba3+ {[%clk 0:01:36.7]} 13... Kd8
{[%clk 0:00:24.8]} 14. Nbd2 {[%clk 0:01:28.9]} 14... Nd7 {[%clk 0:00:22.9]} 15.
O-O-O {[%clk 0:01:26.9]} 15... Bxc3 {[%clk 0:00:20.7]} 16. Nc4 {[%clk
0:01:21.3]} 16... b5 {[%clk 0:00:20.8]} 17. Nce5 {[%clk 0:01:16]} 17... Kc7
{[%clk 0:00:19.8]} 18. Nxc6 {[%clk 0:00:56.1]} 18... Bb7 {[%clk 0:00:17.8]} 19.
Nb4 {[%clk 0:00:41.2]} 19... Rac8 {[%clk 0:00:17.8]} 20. Nd5+ {[%clk 0:00:35.6]}
20... Bxd5 {[%clk 0:00:17.9]} 21. Rxd5 {[%clk 0:00:28.4]} 21... Nb6 {[%clk
0:00:16]} 22. Rxb5 {[%clk 0:00:19.2]} 22... Kb7 {[%clk 0:00:16.6]} 23. Kb1
{[%clk 0:00:18.9]} 23... Rhd8 {[%clk 0:00:13.6]} 24. Bd5+ {[%clk 0:00:19.2]}
24... Ka6 {[%clk 0:00:13.9]} 25. Rb3 {[%clk 0:00:18.8]} 25... Nxd5 {[%clk
0:00:14.1]} 26. exd5 {[%clk 0:00:19.3]} 26... Rxd5 {[%clk 0:00:15]} 27. Rc1
{[%clk 0:00:18.1]} 27... Rb5 {[%clk 0:00:14.9]} 28. Rxb5 {[%clk 0:00:14.6]}
28... Kxb5 {[%clk 0:00:15.8]} 29. Bb2 {[%clk 0:00:14.5]} 29... Kb4 {[%clk
0:00:16.1]} 30. Bxc3+ {[%clk 0:00:14.1]} 30... Rxc3 {[%clk 0:00:17]} 31. Rxc3
{[%clk 0:00:14.1]} 31... Kxc3 {[%clk 0:00:17.9]} 32. Nh4 {[%clk 0:00:14.6]} 1-0

[Event "*** Titled Tuesday Blitz"]
[Site "Chess.com"]
[Date "2020.05.12"]
[Round "8"]
[White "SergioGarciaFuentes"]
[Black "Stronger1799"]
[Result "0-1"]
[WhiteElo "2158"]
[BlackElo "2314"]
[TimeControl "180+1"]
[EndTime "11:32:35 PDT"]
[Termination "Stronger1799 won by resignation"]

1. Nf3 {[%clk 0:03:00.9]} 1... Nf6 {[%clk 0:02:10.5]} 2. g3 {[%clk 0:02:58.7]}
2... g6 {[%clk 0:02:10.9]} 3. b3 {[%clk 0:02:58]} 3... Bg7 {[%clk 0:02:11.8]} 4.
Bb2 {[%clk 0:02:58.2]} 4... O-O {[%clk 0:02:12.3]} 5. Bg2 {[%clk 0:02:58.2]}
5... d6 {[%clk 0:02:12.9]} 6. d4 {[%clk 0:02:58.1]} 6... Nbd7 {[%clk 0:02:12.2]}
7. Nbd2 {[%clk 0:02:57.9]} 7... e5 {[%clk 0:02:05.2]} 8. dxe5 {[%clk 0:02:57.7]}
8... Ng4 {[%clk 0:02:05.3]} 9. Nc4 {[%clk 0:02:57.1]} 9... Ngxe5 {[%clk
0:02:00.5]} 10. Nfxe5 {[%clk 0:02:55.9]} 10... Nxe5 {[%clk 0:02:00.8]} 11. Nxe5
{[%clk 0:02:54.9]} 11... dxe5 {[%clk 0:01:57.6]} 12. Qxd8 {[%clk 0:02:52.5]}
12... Rxd8 {[%clk 0:01:58.5]} 13. Rd1 {[%clk 0:02:44.6]} 13... Bf5 {[%clk
0:01:57.2]} 14. Bxb7 {[%clk 0:02:37.5]} 14... Bxc2 {[%clk 0:01:44.2]} 15. Rc1
{[%clk 0:02:26.9]} 15... Rab8 {[%clk 0:01:35.6]} 16. Bg2 {[%clk 0:02:02.1]}
16... Bf5 {[%clk 0:01:26.9]} 17. Rxc7 {[%clk 0:01:52]} 17... Rbc8 {[%clk
0:01:18.5]} 18. Rxc8 {[%clk 0:00:55.9]} 18... Rxc8 {[%clk 0:01:19.4]} 19. O-O
{[%clk 0:00:51.4]} 19... Rc2 {[%clk 0:01:16.5]} 20. Ba3 {[%clk 0:00:45.6]} 20...
Rxe2 {[%clk 0:01:05.7]} 21. Rd1 {[%clk 0:00:38]} 21... h6 {[%clk 0:01:00.3]} 22.
Bc5 {[%clk 0:00:36.2]} 22... Rxa2 {[%clk 0:00:57]} 23. h3 {[%clk 0:00:35.7]}
23... Be6 {[%clk 0:00:54.5]} 24. b4 {[%clk 0:00:34.7]} 24... f5 {[%clk
0:00:37.3]} 25. Rd6 {[%clk 0:00:33.8]} 25... Kf7 {[%clk 0:00:34.2]} 26. Rc6
{[%clk 0:00:34]} 26... a6 {[%clk 0:00:17.8]} 27. Rc7+ {[%clk 0:00:29.5]} 27...
Kg8 {[%clk 0:00:17]} 28. Ra7 {[%clk 0:00:28.3]} 28... e4 {[%clk 0:00:13.9]} 29.
Kh2 {[%clk 0:00:22.5]} 29... Bc4 {[%clk 0:00:13.2]} 30. b5 {[%clk 0:00:22.4]}
30... Bxb5 {[%clk 0:00:11.3]} 31. g4 {[%clk 0:00:22.3]} 31... Be5+ {[%clk
0:00:09.2]} 32. Kg1 {[%clk 0:00:17.2]} 32... Ra1+ {[%clk 0:00:09]} 0-1

[Event "*** Titled Tuesday Blitz"]
[Site "Chess.com"]
[Date "2020.05.12"]
[Round "8"]
[White "DishonorOnYourCow"]
[Black "vovachesss"]
[Result "0-1"]
[WhiteElo "2337"]
[BlackElo "2607"]
[TimeControl "180+1"]
[EndTime "11:32:36 PDT"]
[Termination "vovachesss won on time"]

1. d4 {[%clk 0:03:00.9]} 1... Nf6 {[%clk 0:02:57.3]} 2. c4 {[%clk 0:03:00.5]}
2... e5 {[%clk 0:02:57.9]} 3. dxe5 {[%clk 0:02:59]} 3... Ng4 {[%clk 0:02:58.5]}
4. Bf4 {[%clk 0:02:58.3]} 4... Nc6 {[%clk 0:02:57]} 5. Nf3 {[%clk 0:02:53.7]}
5... Bb4+ {[%clk 0:02:56.4]} 6. Nbd2 {[%clk 0:02:53]} 6... Qe7 {[%clk
0:02:54.6]} 7. e3 {[%clk 0:02:42.9]} 7... O-O {[%clk 0:02:53.2]} 8. a3 {[%clk
0:02:33.7]} 8... Bxd2+ {[%clk 0:02:49.1]} 9. Qxd2 {[%clk 0:02:34.6]} 9... Ngxe5
{[%clk 0:02:49.2]} 10. Be2 {[%clk 0:02:32.4]} 10... d6 {[%clk 0:02:49.3]} 11.
O-O {[%clk 0:02:32.1]} 11... Bf5 {[%clk 0:02:49.2]} 12. h3 {[%clk 0:02:23]}
12... Rad8 {[%clk 0:02:49.5]} 13. b4 {[%clk 0:02:07]} 13... Nxf3+ {[%clk
0:02:44.2]} 14. Bxf3 {[%clk 0:02:05.9]} 14... Be4 {[%clk 0:02:45.1]} 15. Bxe4
{[%clk 0:01:39.6]} 15... Qxe4 {[%clk 0:02:44.6]} 16. Rac1 {[%clk 0:01:39.7]}
16... Rfe8 {[%clk 0:02:40.5]} 17. Rfd1 {[%clk 0:01:31]} 17... Re6 {[%clk
0:02:37.8]} 18. Bg3 {[%clk 0:01:17.9]} 18... Rde8 {[%clk 0:02:32.5]} 19. Qc3
{[%clk 0:01:12.9]} 19... h5 {[%clk 0:02:31]} 20. b5 {[%clk 0:01:09.3]} 20... Ne7
{[%clk 0:02:25.5]} 21. c5 {[%clk 0:01:00.6]} 21... Nf5 {[%clk 0:02:21]} 22. cxd6
{[%clk 0:00:45]} 22... cxd6 {[%clk 0:02:21.9]} 23. Qc4 {[%clk 0:00:25.6]} 23...
Nxg3 {[%clk 0:02:19.4]} 24. fxg3 {[%clk 0:00:26.5]} 24... Qxe3+ {[%clk
0:02:19.7]} 25. Kh2 {[%clk 0:00:27]} 25... Rg6 {[%clk 0:02:20]} 26. Rc3 {[%clk
0:00:23.8]} 26... Qe5 {[%clk 0:02:19.1]} 27. Rcd3 {[%clk 0:00:20.8]} 27... Ree6
{[%clk 0:02:12.1]} 28. Qf4 {[%clk 0:00:19.5]} 28... Qxb5 {[%clk 0:02:01.9]} 29.
Rxd6 {[%clk 0:00:18.9]} 29... Rxd6 {[%clk 0:01:56]} 30. Rxd6 {[%clk 0:00:19.8]}
30... Kh7 {[%clk 0:01:53.6]} 31. Rd8 {[%clk 0:00:17.5]} 31... a5 {[%clk
0:01:41.1]} 32. Qb8 {[%clk 0:00:17.2]} 32... Rf6 {[%clk 0:01:36.1]} 33. Rh8+
{[%clk 0:00:16.9]} 33... Kg6 {[%clk 0:01:36.6]} 34. Qc8 {[%clk 0:00:16.8]} 34...
b6 {[%clk 0:01:31.7]} 35. Qc2+ {[%clk 0:00:16.2]} 35... Qf5 {[%clk 0:01:32]} 36.
Qc4 {[%clk 0:00:12.3]} 36... Re6 {[%clk 0:01:27.8]} 37. Rb8 {[%clk 0:00:09.7]}
37... Kh7 {[%clk 0:01:25.2]} 38. Qd4 {[%clk 0:00:08.5]} 38... Qf6 {[%clk
0:01:21.2]} 39. Qd5 {[%clk 0:00:06]} 39... Kg6 {[%clk 0:01:15.7]} 40. Qd3+
{[%clk 0:00:05.4]} 40... Qf5 {[%clk 0:01:16.2]} 41. Qd7 {[%clk 0:00:03.6]} 41...
h4 {[%clk 0:01:13.7]} 42. Qc7 {[%clk 0:00:01.7]} 42... Re5 {[%clk 0:00:54.4]}
43. Rb7 {[%clk 0:00:02.2]} 43... hxg3+ {[%clk 0:00:53.8]} 44. Kxg3 {[%clk
0:00:01.9]} 44... Qg5+ {[%clk 0:00:53.1]} 45. Kh2 {[%clk 0:00:02.4]} 45... Qf4+
{[%clk 0:00:53.4]} 0-1

[Event "*** Titled Tuesday Blitz"]
[Site "Chess.com"]
[Date "2020.05.12"]
[Round "8"]
[White "NotFischer"]
[Black "pawel83"]
[Result "0-1"]
[WhiteElo "2128"]
[BlackElo "2364"]
[TimeControl "180+1"]
[EndTime "11:32:36 PDT"]
[Termination "pawel83 won on time"]

1. Nf3 {[%clk 0:03:00.9]} 1... Nf6 {[%clk 0:02:57.9]} 2. g3 {[%clk 0:03:00.6]}
2... g6 {[%clk 0:02:58.4]} 3. Bg2 {[%clk 0:03:00.1]} 3... Bg7 {[%clk 0:02:59.3]}
4. d4 {[%clk 0:03:00.2]} 4... O-O {[%clk 0:02:59.7]} 5. O-O {[%clk 0:02:59.4]}
5... d6 {[%clk 0:03:00.1]} 6. c4 {[%clk 0:02:59.2]} 6... Nc6 {[%clk 0:02:58.8]}
7. Nc3 {[%clk 0:02:59.5]} 7... e5 {[%clk 0:02:58.5]} 8. h3 {[%clk 0:02:41]} 8...
Re8 {[%clk 0:02:50.2]} 9. e4 {[%clk 0:02:39.9]} 9... Nxd4 {[%clk 0:02:43.4]} 10.
Nxd4 {[%clk 0:02:40.8]} 10... exd4 {[%clk 0:02:43.5]} 11. Qxd4 {[%clk
0:02:39.2]} 11... Nxe4 {[%clk 0:02:43.4]} 12. Qd3 {[%clk 0:02:25.7]} 12... Nxc3
{[%clk 0:02:41.1]} 13. bxc3 {[%clk 0:02:26.6]} 13... Qf6 {[%clk 0:02:37.4]} 14.
Bd2 {[%clk 0:02:09.7]} 14... Rb8 {[%clk 0:02:34.8]} 15. a4 {[%clk 0:02:00.5]}
15... Bf5 {[%clk 0:02:30.3]} 16. Qf3 {[%clk 0:01:59.2]} 16... Be4 {[%clk
0:02:27.7]} 17. Qxf6 {[%clk 0:01:58.6]} 17... Bxf6 {[%clk 0:02:27.4]} 18. Rfe1
{[%clk 0:01:47.9]} 18... Bd3 {[%clk 0:02:13.9]} 19. c5 {[%clk 0:01:26.9]} 19...
Rxe1+ {[%clk 0:02:10.6]} 20. Rxe1 {[%clk 0:01:24.5]} 20... dxc5 {[%clk
0:02:09.5]} 21. Bf4 {[%clk 0:01:19.4]} 21... b6 {[%clk 0:01:50.2]} 22. Bxc7
{[%clk 0:00:58.6]} 22... Rc8 {[%clk 0:01:50.1]} 23. Be5 {[%clk 0:00:54.7]} 23...
Re8 {[%clk 0:01:48.1]} 24. f4 {[%clk 0:00:51]} 24... Bxe5 {[%clk 0:01:47.9]} 25.
fxe5 {[%clk 0:00:50.7]} 25... Kg7 {[%clk 0:01:42.1]} 26. Bc6 {[%clk 0:00:50.3]}
26... Re7 {[%clk 0:01:40.8]} 27. Kf2 {[%clk 0:00:50.2]} 27... f6 {[%clk
0:01:38.1]} 28. exf6+ {[%clk 0:00:42.7]} 28... Kxf6 {[%clk 0:01:37.4]} 29. Rd1
{[%clk 0:00:40.9]} 29... Re2+ {[%clk 0:01:33.7]} 30. Kf3 {[%clk 0:00:39.5]}
30... c4 {[%clk 0:01:33.8]} 31. a5 {[%clk 0:00:26.8]} 31... h5 {[%clk
0:01:26.9]} 32. axb6 {[%clk 0:00:23.2]} 32... axb6 {[%clk 0:01:25.8]} 33. Ra1
{[%clk 0:00:24.1]} 33... Re6 {[%clk 0:01:20.9]} 34. Bd5 {[%clk 0:00:17.9]} 34...
Rd6 {[%clk 0:01:20.6]} 35. Bb7 {[%clk 0:00:11]} 35... Bf5 {[%clk 0:01:17.8]} 36.
Ra6 {[%clk 0:00:05.1]} 36... Rd3+ {[%clk 0:01:16.1]} 37. Kf2 {[%clk 0:00:04.3]}
37... Rd6 {[%clk 0:01:15.3]} 38. h4 {[%clk 0:00:03.3]} 38... Ke5 {[%clk
0:01:11.9]} 39. Ke3 {[%clk 0:00:03.6]} 39... b5 {[%clk 0:01:09.4]} 40. Ra5
{[%clk 0:00:02.7]} 40... Rd3+ {[%clk 0:01:07.8]} 41. Kf2 {[%clk 0:00:02.9]}
41... Bd7 {[%clk 0:01:08.1]} 42. Ba6 {[%clk 0:00:02.5]} 42... Rxc3 {[%clk
0:01:02.8]} 43. Bxb5 {[%clk 0:00:02.9]} 43... Rc2+ {[%clk 0:00:56.7]} 44. Ke3
{[%clk 0:00:02.5]} 44... Rc3+ {[%clk 0:00:56.1]} 45. Kd2 {[%clk 0:00:02.2]}
45... Rd3+ {[%clk 0:00:56.4]} 46. Kc2 {[%clk 0:00:01.8]} 46... Rd5 {[%clk
0:00:55.6]} 0-1

[Event "*** Titled Tuesday Blitz"]
[Site "Chess.com"]
[Date "2020.05.12"]
[Round "8"]
[White "Konovalova_Vera"]
[Black "Xtrmntr78"]
[Result "1-0"]
[WhiteElo "2105"]
[BlackElo "2351"]
[TimeControl "180+1"]
[EndTime "11:32:36 PDT"]
[Termination "Konovalova_Vera won on time"]

1. d4 {[%clk 0:03:00.9]} 1... f5 {[%clk 0:02:58.9]} 2. c4 {[%clk 0:02:56.9]}
2... Nf6 {[%clk 0:02:58.6]} 3. Bg5 {[%clk 0:02:55.9]} 3... Ne4 {[%clk
0:02:55.3]} 4. Bf4 {[%clk 0:02:54]} 4... d6 {[%clk 0:02:54.9]} 5. Nc3 {[%clk
0:02:50.2]} 5... g6 {[%clk 0:02:47.7]} 6. e3 {[%clk 0:02:49.1]} 6... Bg7 {[%clk
0:02:45.8]} 7. Nh3 {[%clk 0:02:41.6]} 7... c5 {[%clk 0:02:41]} 8. Nxe4 {[%clk
0:02:23.9]} 8... fxe4 {[%clk 0:02:40.2]} 9. Ng5 {[%clk 0:02:18.8]} 9... Qa5+
{[%clk 0:02:38.5]} 10. Qd2 {[%clk 0:02:13]} 10... Qxd2+ {[%clk 0:02:37.8]} 11.
Kxd2 {[%clk 0:02:12.9]} 11... cxd4 {[%clk 0:02:35.8]} 12. Nxe4 {[%clk 0:02:03]}
12... O-O {[%clk 0:02:28.4]} 13. Rb1 {[%clk 0:01:57.4]} 13... Bf5 {[%clk
0:02:05.9]} 14. Bd3 {[%clk 0:01:57.1]} 14... Nc6 {[%clk 0:01:59.6]} 15. a3
{[%clk 0:01:39.8]} 15... Rad8 {[%clk 0:01:18.9]} 16. Ng5 {[%clk 0:01:38.4]}
16... dxe3+ {[%clk 0:01:05.2]} 17. Bxe3 {[%clk 0:01:36.4]} 17... Bxd3 {[%clk
0:01:03.8]} 18. Kxd3 {[%clk 0:01:33.5]} 18... Rc8 {[%clk 0:00:40.6]} 19. b3
{[%clk 0:01:28.9]} 19... b5 {[%clk 0:00:32]} 20. Ke2 {[%clk 0:01:10.6]} 20...
bxc4 {[%clk 0:00:29.5]} 21. bxc4 {[%clk 0:01:09.7]} 21... Ne5 {[%clk 0:00:27.7]}
22. Rb7 {[%clk 0:00:59.1]} 22... Nxc4 {[%clk 0:00:19.6]} 23. Ne6 {[%clk
0:00:51.2]} 23... Rf7 {[%clk 0:00:18.2]} 24. Bxa7 {[%clk 0:00:45.2]} 24... Ne5
{[%clk 0:00:12.3]} 25. Rb8 {[%clk 0:00:35.6]} 25... Rxb8 {[%clk 0:00:09.2]} 26.
Bxb8 {[%clk 0:00:36.1]} 26... Nc6 {[%clk 0:00:06.4]} 27. Rc1 {[%clk 0:00:31]}
27... Nd4+ {[%clk 0:00:03.8]} 28. Nxd4 {[%clk 0:00:23.9]} 28... Bxd4 {[%clk
0:00:04]} 29. Rc8+ {[%clk 0:00:18.6]} 1-0